bitfinex-derivatives/quotes_BTCF0:USTF0_20251030
["timestamp","ask_amount","ask_price","bid_price","bid_amount"]
[1761830196054,0.05711,108510.0,108500.0,0.05025]
[1761830196254,0.05711,108510.0,108500.0,0.41105]
[1761830196454,0.37807,108510.0,108500.0,0.41105]
[1761830196664,0.05711,108510.0,108500.0,0.41105]
[1761830196866,0.37807,108510.0,108500.0,0.41105]
[1761830197059,0.39807,108510.0,108500.0,0.41105]
[1761830197562,0.37807,108510.0,108500.0,0.41105]
[1761830197753,0.39807,108510.0,108500.0,0.41105]
[1761830197955,0.39807,108510.0,108500.0,0.40393]
[1761830198255,0.04633,108520.0,108510.0,0.04313]
[1761830198449,0.38840255,108520.0,108510.0,0.40393]
[1761830198658,0.36729,108520.0,108510.0,0.40393]
[1761830199049,0.64738517,108520.0,108510.0,0.04313]
[1761830199253,0.4083997,108520.0,108510.0,0.04313]
[1761830199454,0.67938517,108520.0,108510.0,0.02151]
[1761830199755,0.02237,108510.0,108500.0,0.38607]
[1761830199965,0.06357,108510.0,108500.0,0.40769]
[1761830200562,0.06357,108510.0,108500.0,0.40669]
[1761830201158,0.04357,108510.0,108500.0,0.40669]
[1761830201556,0.04357,108510.0,108500.0,0.40769]
[1761830202354,0.04357,108510.0,108500.0,0.45704477]
[1761830202850,0.05711,108510.0,108500.0,0.40769]
[1761830203566,0.05711,108510.0,108500.0,0.45704477]
[1761830203760,0.05711,108510.0,108500.0,0.46416477]
[1761830204862,0.02237,108510.0,108500.0,0.46416477]
[1761830205063,0.38083,108520.0,108510.0,0.05692]
[1761830205264,0.40196407,108520.0,108510.0,0.41772]
[1761830206268,0.40396407,108520.0,108510.0,0.41772]
[1761830206673,0.40120407,108520.0,108510.0,0.41772]
[1761830207071,0.42120407,108520.0,108510.0,0.41772]
[1761830209968,0.42120407,108520.0,108510.0,0.40393]
[1761830210571,0.68018954,108520.0,108510.0,0.40393]
[1761830211775,0.68018954,108520.0,108510.0,0.04313]
[1761830212175,0.44120407,108520.0,108510.0,0.04313]
[1761830212474,0.68018954,108520.0,108510.0,0.04313]
[1761830212875,0.42120407,108520.0,108510.0,0.04313]
[1761830214173,0.44593435,108520.0,108510.0,0.05692]
[1761830214379,0.42120407,108520.0,108510.0,0.04313]
[1761830215172,0.08024407,108520.0,108510.0,0.04313]
[1761830215379,0.40120407,108520.0,108510.0,0.40393]
[1761830216371,0.40120407,108520.0,108510.0,0.4169]
[1761830217875,0.08024407,108520.0,108510.0,0.4169]
[1761830218283,0.40120407,108520.0,108510.0,0.4169]
[1761830218483,0.02313407,108520.0,108510.0,0.70524024]
[1761830219187,0.04552407,108520.0,108510.0,0.70800024]
[1761830220872,0.02313407,108520.0,108510.0,0.70800024]
[1761830221067,0.002,108520.0,108510.0,0.75081067]
[1761830221267,0.06945028,108540.0,108530.0,0.05023]
[1761830221481,0.09082743,108540.0,108530.0,0.65001547]
[1761830221670,0.02239,108540.0,108530.0,0.70251932]
[1761830221871,0.38852599,108550.0,108540.0,0.04292]
[1761830222071,0.42990504,108550.0,108540.0,0.05]
[1761830222275,0.09963905,108550.0,108540.0,0.05]
[1761830222476,0.38564,108550.0,108540.0,0.46054385]
[1761830223480,0.38764,108550.0,108540.0,0.46054385]
[1761830223676,0.39680665,108550.0,108540.0,0.46054385]
[1761830223880,0.40991665,108550.0,108540.0,0.45346385]
[1761830224075,0.43125574,108550.0,108540.0,0.40372]
[1761830224278,0.05783,108540.0,108530.0,0.38269]
[1761830224474,0.07783,108540.0,108530.0,0.38269]
[1761830224875,0.07783,108540.0,108530.0,0.40372]
[1761830225079,0.07839,108540.0,108530.0,0.40372]
[1761830225875,0.08039,108540.0,108530.0,0.40372]
[1761830226480,0.08039,108540.0,108530.0,0.38269]
[1761830226676,0.02239,108530.0,108520.0,0.41054385]
[1761830226882,0.37801,108530.0,108520.0,0.45467385]
[1761830227682,0.37745,108530.0,108520.0,0.46764385]
[1761830227882,0.36544,108530.0,108520.0,0.46764385]
[1761830228386,0.32188,108530.0,108520.0,0.70938932]
[1761830228588,0.36502,108530.0,108520.0,0.70662932]
[1761830228880,0.37803,108530.0,108520.0,0.29608547]
[1761830229082,0.37803,108530.0,108520.0,0.65688547]
[1761830229283,0.37803,108530.0,108520.0,0.40493]
[1761830229494,0.37803,108530.0,108520.0,0.04413]
[1761830229790,0.75939,108530.0,108520.0,0.04413]
[1761830230180,0.39859,108530.0,108520.0,0.04413]
[1761830230581,0.39859,108530.0,108520.0,0.40493]
[1761830230989,0.39859,108530.0,108520.0,0.04413]
[1761830232488,0.39859,108530.0,108520.0,0.40493]
[1761830232684,0.39859,108530.0,108520.0,0.04413]
[1761830233887,0.37803,108530.0,108520.0,0.41783]
[1761830235294,0.37803,108530.0,108520.0,0.65681547]
[1761830236184,0.001,108530.0,108520.0,0.65681547]
[1761830236385,0.001,108530.0,108520.0,1.25957547]
[1761830237293,0.04564,108530.0,108520.0,1.01783]
[1761830237592,0.05942,108530.0,108520.0,0.40493]
[1761830238682,0.05886,108530.0,108520.0,0.40493]
[1761830239088,0.05942,108530.0,108520.0,0.40493]
[1761830240897,0.05886,108530.0,108520.0,0.40493]
[1761830241397,0.05886,108530.0,108520.0,0.4179]
[1761830241693,0.04564,108530.0,108520.0,0.4179]
[1761830241999,0.001,108530.0,108520.0,0.4179]
[1761830242190,0.02432,108530.0,108520.0,0.4179]
[1761830242390,0.04564,108530.0,108520.0,0.46764385]
[1761830242593,0.001,108530.0,108520.0,0.70662932]
[1761830242799,0.32188,108530.0,108520.0,0.70938932]
[1761830243103,0.001,108530.0,108520.0,1.03022932]
[1761830243298,0.44328028,108560.0,108550.0,0.04335]
[1761830243597,0.41998764,108560.0,108550.0,0.05632]
[1761830243787,0.39998764,108560.0,108550.0,0.41712]
[1761830243994,0.39998764,108560.0,108550.0,0.05632]
[1761830244198,0.42054764,108560.0,108550.0,0.04335]
[1761830244502,0.42354764,108560.0,108550.0,0.04335]
[1761830244698,0.43854569,108560.0,108550.0,0.04335]
[1761830245102,0.43254569,108560.0,108550.0,0.04335]
[1761830245396,0.43654569,108560.0,108550.0,0.04335]
[1761830246099,0.0579,108550.0,108540.0,0.41054385]
[1761830246401,0.0579,108540.0,108510.0,0.3608]
[1761830246701,0.04477,108520.0,108510.0,0.40586]
[1761830246896,0.09533,108520.0,108510.0,0.40586]
[1761830247200,0.04533,108520.0,108510.0,0.40586]
[1761830247595,0.06533,108520.0,108510.0,0.40586]
[1761830248195,0.08533,108520.0,108510.0,0.40686]
[1761830248394,0.08533,108520.0,108510.0,0.40886]
[1761830248599,0.08533,108520.0,108510.0,0.003]
[1761830248600,0.92511547,108520.0,108510.0,0.003]
[1761830248895,0.0579,108500.0,108490.0,0.04506]
[1761830249200,0.66828547,108500.0,108490.0,0.04506]
[1761830249398,0.66828547,108500.0,108480.0,0.06621341]
[1761830249399,0.02315,108490.0,108480.0,0.06621341]
[1761830249700,0.28431547,108490.0,108480.0,0.47207341]
[1761830249999,0.69511547,108490.0,108480.0,0.08905341]
[1761830250197,0.45513,108490.0,108480.0,0.08905341]
[1761830250406,0.96411547,108490.0,108480.0,0.06621341]
[1761830250591,0.0579,108480.0,108470.0,0.08905341]
[1761830250899,0.42874,108480.0,108470.0,0.11127341]
[1761830251092,0.4283,108480.0,108470.0,0.11127341]
[1761830251288,0.3983,108480.0,108470.0,0.04506]
[1761830251497,0.40754029,108480.0,108470.0,0.04506]
[1761830252096,0.04477,108470.0,108460.0,1.8608]
[1761830252298,0.04533,108470.0,108460.0,1.8608]
[1761830252508,0.04433,108470.0,108460.0,1.8608]
[1761830252802,0.04377,108470.0,108460.0,1.8608]
[1761830253004,0.04433,108470.0,108460.0,1.8608]
[1761830253691,0.06333,108470.0,108460.0,1.8608]
[1761830254491,0.04333,108470.0,108460.0,1.8618]
[1761830254693,0.04333,108470.0,108460.0,1.8628]
[1761830254893,0.06333,108470.0,108460.0,1.8628]
[1761830255096,0.66311547,108470.0,108460.0,0.002]
[1761830255298,0.06333,108470.0,108460.0,0.04706]
[1761830255495,0.04277,108470.0,108460.0,0.41171]
[1761830255696,0.36365,108470.0,108460.0,0.41171]
[1761830256502,0.36369,108470.0,108460.0,0.41171]
[1761830256894,0.06714029,108480.0,108470.0,0.04506]
[1761830257202,0.38806029,108480.0,108470.0,0.04506]
[1761830257403,0.38862029,108480.0,108470.0,0.04506]
[1761830258200,0.40862029,108480.0,108470.0,0.04506]
[1761830258704,0.40862029,108480.0,108470.0,0.40586]
[1761830258900,0.00056,108480.0,108470.0,0.40586]
[1761830259104,0.59070513,108500.0,108490.0,0.04506]
[1761830259304,0.9830592,108500.0,108490.0,0.04506]
[1761830259509,0.91105149,108500.0,108490.0,0.04506]
[1761830259705,0.91161149,108500.0,108490.0,0.04506]
[1761830260305,0.04477,108490.0,108480.0,0.04506]
[1761830260605,0.09533,108490.0,108480.0,0.04506]
[1761830261709,0.0579,108480.0,108470.0,0.40586]
[1761830261910,0.39938,108480.0,108470.0,0.40586]
[1761830264605,0.76018,108480.0,108470.0,0.04506]
[1761830265205,0.07846,108480.0,108470.0,0.04506]
[1761830265711,0.39942,108480.0,108470.0,0.04506]
[1761830267412,0.07846,108480.0,108470.0,0.04506]
[1761830267608,0.39942,108480.0,108470.0,0.40586]
[1761830267809,0.39942,108480.0,108470.0,0.04506]
[1761830268609,0.39942,108480.0,108470.0,0.40586]
[1761830268918,0.07846,108480.0,108470.0,0.40586]
[1761830269102,0.56942,108480.0,108470.0,0.40586]
[1761830269813,0.0579,108470.0,108460.0,0.40586]
[1761830270116,0.07846,108470.0,108460.0,0.40586]
[1761830270418,0.06533,108470.0,108460.0,0.40971]
[1761830270612,0.39942,108470.0,108460.0,0.40586]
[1761830270909,0.39886,108470.0,108460.0,0.40586]
[1761830271110,0.39942,108470.0,108460.0,0.40586]
[1761830271320,0.39942,108470.0,108460.0,0.40686]
[1761830271707,0.37886,108470.0,108460.0,0.40686]
[1761830271907,0.38573,108470.0,108460.0,0.41998]
[1761830272108,0.36411,108470.0,108460.0,0.41998]
[1761830272305,0.38573,108470.0,108460.0,0.41998]
[1761830272616,0.37886,108470.0,108460.0,0.40686]
[1761830272806,0.39886,108470.0,108460.0,0.40786]
[1761830275613,0.05904,108450.0,108440.0,6.761e-05]
[1761830275913,1.03136,108450.0,108440.0,6.761e-05]
[1761830276119,1.63136,108450.0,108440.0,6.761e-05]
[1761830276509,1.43518055,108450.0,108440.0,6.761e-05]
[1761830276822,0.05661,108410.0,108400.0,0.04323]
[1761830277113,0.05904,108400.0,108390.0,0.40403]
[1761830277521,0.05904,108400.0,108390.0,1.90403]
[1761830277819,0.05910959,108400.0,108390.0,1.90403]
[1761830278114,0.05810959,108400.0,108390.0,1.5]
[1761830278515,0.37946959,108400.0,108390.0,1.8608]
[1761830278815,0.06733081,108400.0,108390.0,1.8608]
[1761830279117,0.38869081,108400.0,108390.0,1.8608]
[1761830279304,6.959e-05,108400.0,108390.0,1.8608]
[1761830279502,0.34367959,108400.0,108390.0,1.8608]
[1761830279706,0.36666959,108400.0,108390.0,1.8608]
[1761830279916,0.36666959,108400.0,108390.0,1.8618]
[1761830280322,6.959e-05,108400.0,108390.0,1.8618]
[1761830280626,0.34367959,108400.0,108390.0,1.8618]
[1761830281319,0.34363959,108400.0,108390.0,1.8618]
[1761830282117,0.36662959,108400.0,108390.0,1.8618]
[1761830284516,0.38662959,108400.0,108390.0,1.8618]
[1761830284905,0.36662959,108400.0,108390.0,0.001]
[1761830285110,0.03605,108380.0,108370.0,0.40403]
[1761830285311,7.494e-05,108380.0,108370.0,0.40403]
[1761830285514,7.494e-05,108380.0,108370.0,2.39737465]
[1761830285712,0.03125016,108410.0,108400.0,0.05641]
[1761830285911,0.03125016,108410.0,108400.0,0.41721]
[1761830285912,0.0452,108410.0,108400.0,0.41721]
[1761830286412,0.0452,108410.0,108400.0,0.40403]
[1761830286813,0.0452,108410.0,108400.0,0.41721]
[1761830287015,0.0502,108410.0,108400.0,0.41721]
[1761830287217,0.005,108410.0,108400.0,0.81827055]
[1761830287421,0.002,108410.0,108400.0,0.81827055]
[1761830287620,0.007,108410.0,108400.0,0.41721]
[1761830288324,0.007,108410.0,108400.0,0.73921]
[1761830288815,0.007,108410.0,108400.0,0.81827055]
[1761830289013,0.007,108410.0,108400.0,1.14023055]
[1761830289215,0.007,108410.0,108400.0,0.81827055]
[1761830289525,0.45528082,108430.0,108420.0,0.04323]
[1761830289722,0.66464404,108430.0,108420.0,0.40403]
[1761830289925,0.66464404,108430.0,108420.0,0.02194]
[1761830290320,0.05904,108420.0,108410.0,0.40403]
[1761830291221,0.05804,108420.0,108410.0,0.40403]
[1761830291424,0.0442,108420.0,108410.0,0.40403]
[1761830291623,0.05804,108420.0,108410.0,0.40403]
[1761830292619,0.06004,108420.0,108410.0,0.40503]
[1761830292814,0.06504,108420.0,108410.0,0.40503]
[1761830295127,0.06504,108420.0,108410.0,0.001]
[1761830295128,0.24504,108420.0,108410.0,0.001]
[1761830295526,0.26713897,108420.0,108410.0,0.001]
[1761830296022,0.60584,108420.0,108410.0,0.001]
[1761830296222,0.62755825,108420.0,108410.0,0.001]
[1761830296613,0.08675825,108420.0,108410.0,0.001]
[1761830296926,0.007,108420.0,108410.0,0.80798055]
[1761830297817,0.007,108420.0,108410.0,0.81701053]
[1761830298625,0.007,108420.0,108410.0,0.80798055]
[1761830299326,0.02966,108420.0,108410.0,0.40692]
[1761830299529,0.02966,108420.0,108410.0,0.80798055]
[1761830299828,0.06426,108420.0,108410.0,0.40692]
[1761830303923,0.06426,108420.0,108410.0,0.04612]
[1761830304326,0.08607105,108420.0,108410.0,0.04612]
[1761830304827,0.08607105,108420.0,108410.0,0.40692]
[1761830306434,0.07296105,108420.0,108410.0,0.42011]
[1761830306623,0.02881105,108420.0,108410.0,0.42011]
[1761830306820,0.35025105,108420.0,108410.0,0.42011]
[1761830308132,0.39360105,108420.0,108410.0,0.42011]
[1761830309526,0.39360105,108420.0,108410.0,0.40692]
[1761830311138,0.05684,108400.0,108390.0,0.09401387]
[1761830311430,0.37812,108400.0,108390.0,0.04459]
[1761830311736,0.36463,108400.0,108390.0,0.45481387]
[1761830312044,0.36426992,108400.0,108390.0,0.40539]
[1761830312233,0.3863469,108400.0,108390.0,0.40539]
[1761830312435,0.3883469,108400.0,108390.0,0.40539]
[1761830314531,0.36626992,108400.0,108390.0,0.40539]
[1761830314732,0.38834326,108400.0,108390.0,0.40539]
[1761830317043,0.34547334,108400.0,108390.0,0.40539]
[1761830317233,0.002,108400.0,108390.0,0.80645055]
[1761830317425,0.002,108400.0,108390.0,1.00561536]
[1761830317629,0.002,108400.0,108390.0,1.01928536]
[1761830319524,0.002,108400.0,108390.0,1.11155246]
[1761830319733,0.65581469,108430.0,108420.0,0.05795]
[1761830319930,0.67788364,108430.0,108420.0,0.05795]
[1761830320227,0.67788364,108430.0,108420.0,0.41875]
[1761830320228,0.34342895,108430.0,108420.0,0.41875]
[1761830320638,0.34342895,108430.0,108420.0,0.65817536]
[1761830321037,0.34642895,108430.0,108420.0,0.65817536]
[1761830321440,0.35342895,108430.0,108420.0,0.65917536]
[1761830321636,0.03206895,108430.0,108420.0,0.98057536]
[1761830322734,0.03139,108430.0,108420.0,0.74115]
[1761830322934,0.07520591,108430.0,108420.0,0.41975]
[1761830325539,0.07520591,108430.0,108420.0,0.40639]
[1761830325741,0.05335,108430.0,108420.0,0.40639]
[1761830326039,0.07520279,108430.0,108420.0,0.40639]
[1761830326539,0.05335,108430.0,108420.0,0.40639]
[1761830326842,1.2770917,108430.0,108420.0,0.001]
[1761830327639,1.03766634,108430.0,108420.0,0.001]
[1761830327943,1.14708912,108430.0,108420.0,0.001]
[1761830328141,1.14708912,108430.0,108420.0,0.02409]
[1761830328341,1.14708912,108430.0,108420.0,0.001]
[1761830329338,1.11709654,108430.0,108420.0,0.001]
[1761830329545,0.53036118,108430.0,108420.0,0.02409]
[1761830330138,0.74978654,108430.0,108420.0,0.02409]
[1761830330445,0.77116376,108430.0,108420.0,0.001]
[1761830330642,0.77116376,108430.0,108420.0,0.04559]
[1761830330939,0.77116376,108430.0,108420.0,0.02409]
[1761830331144,1.01058912,108430.0,108420.0,0.02409]
[1761830331340,0.02139,108390.0,108380.0,0.45694341]
[1761830331538,0.04335,108370.0,108360.0,0.11385347]
[1761830331740,0.36595,108370.0,108360.0,0.0312]
[1761830331941,0.37508017,108370.0,108360.0,0.0312]
[1761830332238,0.41781226,108370.0,108360.0,0.0312]
[1761830332638,0.39781226,108370.0,108360.0,0.0312]
[1761830332839,0.37516017,108370.0,108360.0,0.392]
[1761830333039,0.39789518,108370.0,108360.0,0.392]
[1761830333240,0.37516017,108370.0,108360.0,0.392]
[1761830333442,0.37512017,108370.0,108360.0,0.392]
[1761830333635,0.05148017,108370.0,108360.0,0.392]
[1761830333844,0.35212017,108370.0,108360.0,0.63142536]
[1761830334040,0.34399,108370.0,108360.0,0.392]
[1761830334239,0.36595,108370.0,108360.0,0.392]
[1761830338247,0.36587,108370.0,108360.0,0.392]
[1761830338548,0.04335,108370.0,108360.0,0.392]
[1761830338744,0.36579,108370.0,108360.0,0.392]
[1761830340846,0.36579,108370.0,108360.0,0.3608]
[1761830341049,0.36579,108370.0,108350.0,0.3608]
[1761830341050,0.05823,108340.0,108330.0,1.86089188]
[1761830341237,0.05823,108360.0,108350.0,0.0332]
[1761830341546,0.04639329,108370.0,108360.0,0.0332]
[1761830341752,0.04564,108370.0,108360.0,0.394]
[1761830342544,0.04564,108370.0,108360.0,0.0332]
[1761830342749,0.04564,108370.0,108360.0,0.394]
[1761830343152,0.04464,108370.0,108360.0,0.394]
[1761830343749,0.04464,108370.0,108340.0,0.394]
[1761830343750,0.02265,108350.0,108340.0,0.394]
[1761830343952,0.3684,108350.0,108340.0,0.394]
[1761830344248,0.32476,108350.0,108340.0,1.23342536]
[1761830344837,0.32476,108350.0,108340.0,0.994]
[1761830345047,0.34775,108350.0,108340.0,0.996]
[1761830346651,0.32576,108350.0,108340.0,1.0883097]
[1761830347149,0.28506536,108350.0,108340.0,0.3628]
[1761830347356,0.04767106,108350.0,108340.0,0.398]
[1761830347649,0.04564,108350.0,108340.0,0.398]
[1761830348449,0.02365,108350.0,108340.0,0.398]
[1761830348651,0.02459259,108400.0,108390.0,0.0443]
[1761830348844,0.09186351,108420.0,108410.0,0.0443]
[1761830349051,0.08989135,108420.0,108410.0,0.0443]
[1761830349350,0.04464,108410.0,108400.0,0.3608]
[1761830349566,0.04464,108410.0,108390.0,0.3608]
[1761830349567,0.02199,108380.0,108370.0,0.4051]
[1761830349761,0.37308,108390.0,108380.0,0.0443]
[1761830349953,0.37308,108390.0,108380.0,0.4051]
[1761830350256,0.37208,108390.0,108380.0,0.4051]
[1761830350962,0.06123,108400.0,108390.0,0.0443]
[1761830351255,0.06123,108400.0,108390.0,0.4051]
[1761830352057,0.05823,108400.0,108390.0,0.4051]
[1761830353552,0.06423,108400.0,108390.0,0.4061]
[1761830353754,0.05064,108400.0,108390.0,0.4061]
[1761830353959,0.05164,108400.0,108390.0,0.4061]
[1761830354260,0.66945536,108400.0,108390.0,0.001]
[1761830354455,0.06923,108400.0,108390.0,0.0453]
[1761830354657,0.06223,108400.0,108390.0,0.4051]
[1761830354856,0.06523,108400.0,108390.0,0.4061]
[1761830355057,0.06523,108400.0,108390.0,0.0453]
[1761830355257,0.06523,108400.0,108390.0,0.4061]
[1761830355465,0.30465536,108400.0,108390.0,0.001]
[1761830355766,0.42465278,108400.0,108390.0,0.001]
[1761830355951,0.27522742,108400.0,108390.0,0.001]
[1761830356156,0.27522742,108400.0,108390.0,0.0447]
[1761830356157,0.18774802,108400.0,108390.0,0.0447]
[1761830356361,0.0877506,108400.0,108390.0,0.0447]
[1761830356661,0.0917506,108400.0,108390.0,0.0447]
[1761830357170,0.05516,108380.0,108370.0,0.38282]
[1761830357660,0.05516,108380.0,108370.0,0.3608]
[1761830357860,0.04265,108370.0,108360.0,0.7325]
[1761830358053,0.04265,108370.0,108360.0,0.4045]
[1761830358253,0.25293536,108380.0,108350.0,0.4045]
[1761830358254,0.05616,108360.0,108350.0,0.4045]
[1761830358454,0.05616,108360.0,108350.0,0.7325]
[1761830358648,0.05616,108360.0,108350.0,0.4045]
[1761830359063,0.08554573,108360.0,108350.0,0.4045]
[1761830359252,0.57773109,108360.0,108350.0,0.3608]
[1761830359457,0.04265,108340.0,108330.0,2.18881188]
[1761830360157,0.04165,108340.0,108330.0,1.86089188]
[1761830360358,0.05516,108340.0,108330.0,1.86089188]
[1761830360550,0.05616,108320.0,108300.0,0.42684744]
[1761830360747,0.05616,108320.0,108240.0,0.52610695]
[1761830360748,0.00276,108290.0,108240.0,0.52610695]
[1761830360957,0.35179459,108250.0,108240.0,1.55108784]
[1761830361158,0.3608,108270.0,108250.0,0.50531188]
[1761830361365,0.42837796,108270.0,108260.0,0.43687744]
[1761830361561,0.45115293,108270.0,108260.0,0.94333932]
[1761830361859,0.41698845,108270.0,108260.0,1.27625932]
[1761830362061,0.3857292,108270.0,108260.0,1.51568468]
[1761830362364,0.23942536,108310.0,108260.0,1.51568468]
[1761830362365,0.02442713,108310.0,108290.0,0.0437]
[1761830362662,0.00933271,108330.0,108300.0,1.43339465]
[1761830362863,0.02478059,108330.0,108310.0,0.37003]
[1761830363058,0.05490749,108330.0,108320.0,0.83312929]
[1761830363261,0.05490749,108330.0,108310.0,0.60022536]
[1761830363262,0.06755,108320.0,108310.0,0.28603216]
[1761830363467,0.04265,108310.0,108280.0,0.01394]
[1761830363668,0.40354188,108300.0,108290.0,0.33076]
[1761830363960,0.4354658,108300.0,108290.0,0.41520929]
[1761830364166,0.4554658,108300.0,108290.0,0.33076]
[1761830364361,0.6948592,108300.0,108290.0,0.33076]
[1761830364661,0.73220662,108300.0,108280.0,0.10259]
[1761830364862,0.7127392,108300.0,108290.0,0.41560929]
[1761830365066,0.48031384,108300.0,108290.0,0.41660929]
[1761830365361,0.11951384,108300.0,108290.0,0.33216]
[1761830365568,0.11951384,108300.0,108290.0,0.37093]
[1761830365766,0.11951384,108300.0,108290.0,0.85412929]
[1761830365767,0.11751384,108300.0,108290.0,0.85412929]
[1761830365969,0.02984051,108300.0,108290.0,0.85412929]
[1761830366158,0.03284051,108300.0,108290.0,0.85412929]
[1761830366558,0.00809188,108300.0,108290.0,0.85412929]
[1761830367465,0.00809188,108300.0,108290.0,0.52296929]
[1761830367652,0.00809188,108300.0,108290.0,0.85668929]
[1761830368057,0.01009188,108300.0,108290.0,0.85492929]
[1761830368254,0.01009188,108300.0,108290.0,0.85768929]
[1761830368460,0.01009188,108300.0,108290.0,0.50672929]
[1761830368656,0.01009188,108300.0,108290.0,0.83772929]
[1761830368958,0.01009188,108300.0,108290.0,0.83760929]
[1761830369260,0.01009188,108300.0,108290.0,1.67703465]
[1761830369658,0.3608,108330.0,108320.0,0.10259]
[1761830369861,0.58549705,108330.0,108320.0,0.44266]
[1761830370062,0.59992605,108330.0,108320.0,0.51787929]
[1761830370366,0.19999605,108330.0,108320.0,0.51787929]
[1761830370569,0.60022536,108340.0,108320.0,0.51787929]
[1761830370761,0.70546005,108340.0,108330.0,0.12321929]
[1761830370964,0.70546005,108340.0,108330.0,0.45389929]
[1761830371566,0.03913,108330.0,108320.0,0.06364]
[1761830371757,0.66406005,108330.0,108320.0,0.44242]
[1761830371961,0.66406005,108330.0,108320.0,0.51763929]
[1761830372360,0.71246005,108330.0,108320.0,0.001]
[1761830372565,0.8396008,108330.0,108320.0,0.33152]
[1761830372771,0.8396008,108330.0,108320.0,0.001]
[1761830372969,0.8196008,108330.0,108320.0,0.33156]
[1761830373166,0.8423608,108330.0,108320.0,0.001]
[1761830374077,0.8443608,108330.0,108320.0,0.001]
[1761830374977,0.60217544,108330.0,108320.0,0.001]
[1761830375274,0.8216008,108330.0,108320.0,0.001]
[1761830375470,0.8216008,108330.0,108320.0,0.07872]
[1761830375678,0.72160338,108330.0,108320.0,0.07872]
[1761830376475,0.48217802,108330.0,108320.0,0.07872]
[1761830377070,0.47503469,108330.0,108320.0,0.16316929]
[1761830378175,0.87711095,108330.0,108320.0,0.15393929]
[1761830378376,0.07860822,108310.0,108300.0,0.10259]
[1761830378575,0.78675626,108320.0,108300.0,0.50776929]
[1761830378773,0.46601244,108320.0,108310.0,0.16216929]
[1761830378974,0.46984788,108320.0,108310.0,0.16216929]
[1761830379281,0.46984788,108320.0,108310.0,0.08695]
[1761830380278,0.3608,108330.0,108310.0,0.16216929]
[1761830380578,0.47444458,108330.0,108320.0,0.18703929]
[1761830380880,0.87652084,108330.0,108320.0,0.18703929]
[1761830381082,0.47444458,108330.0,108320.0,0.18703929]
[1761830381282,0.42462289,108330.0,108320.0,0.18703929]
[1761830381482,0.02469289,108330.0,108320.0,0.18703929]
[1761830381878,0.02469289,108330.0,108320.0,0.54783929]
[1761830382079,0.45063296,108350.0,108340.0,0.07772]
[1761830382282,0.4753567,108350.0,108340.0,0.08695]
[1761830382580,0.47994366,108350.0,108340.0,0.08695]
[1761830383182,0.66092139,108350.0,108340.0,0.08695]
[1761830383479,0.67993971,108350.0,108340.0,0.08695]
[1761830383682,0.67993971,108350.0,108340.0,0.11182]
[1761830383876,0.67063675,108350.0,108340.0,0.11182]
[1761830384077,0.67063675,108350.0,108340.0,0.51655929]
[1761830384583,0.58951979,108350.0,108340.0,0.51655929]
[1761830384771,0.39852374,108350.0,108340.0,0.51755929]
[1761830385381,0.03772374,108350.0,108340.0,0.51755929]
[1761830386179,0.03172374,108350.0,108340.0,0.51655929]
[1761830386683,0.03172374,108350.0,108340.0,0.87743929]
[1761830386884,0.02772374,108350.0,108340.0,0.87743929]
[1761830387093,0.02872374,108350.0,108340.0,0.87743929]
[1761830387285,0.02872374,108350.0,108340.0,0.50728929]
[1761830387475,0.87213,108350.0,108340.0,0.16216929]
[1761830387782,0.87113,108350.0,108340.0,0.49160929]
[1761830387983,0.47005374,108350.0,108340.0,0.51647929]
[1761830388776,0.47005374,108350.0,108340.0,0.18703929]
[1761830388979,0.47005374,108350.0,108340.0,0.51635929]
[1761830389184,0.47005374,108350.0,108340.0,0.18703929]
[1761830389684,0.42865374,108350.0,108340.0,0.51631929]
[1761830389979,0.38952374,108350.0,108340.0,0.51631929]
[1761830390983,0.02872374,108350.0,108340.0,0.51631929]
[1761830391172,0.02872374,108350.0,108340.0,0.87711929]
[1761830391376,0.02872374,108350.0,108340.0,0.51631929]
[1761830391572,0.38952374,108350.0,108340.0,0.51631929]
[1761830392995,0.02872374,108350.0,108340.0,0.51631929]
[1761830393176,0.02872374,108350.0,108340.0,0.87711929]
[1761830393673,0.02872374,108350.0,108340.0,0.87679929]
[1761830394679,0.02872374,108350.0,108340.0,0.87667929]
[1761830395181,1.1487726,108380.0,108360.0,0.0666]
[1761830395182,0.03249634,108380.0,108360.0,0.0666]
[1761830395387,0.13710269,108410.0,108400.0,0.07313]
[1761830395589,0.07211,108410.0,108400.0,0.07313]
[1761830395774,0.44151989,108410.0,108400.0,0.07313]
[1761830396173,0.43291,108410.0,108400.0,0.07313]
[1761830396380,0.07211,108410.0,108400.0,0.07313]
[1761830396883,0.07487,108410.0,108400.0,0.07313]
[1761830397185,0.07211,108410.0,108400.0,0.10343]
[1761830397379,0.007,108410.0,108400.0,0.10443]
[1761830397882,0.07911,108410.0,108400.0,0.10443]
[1761830398288,0.08287,108410.0,108400.0,0.10443]
[1761830398591,0.08287,108410.0,108400.0,0.001]
[1761830398592,0.84574626,108410.0,108400.0,0.001]
[1761830398889,0.07211,108440.0,108430.0,0.07313]
[1761830399090,0.43291,108440.0,108430.0,0.08236]
[1761830399392,0.76595,108440.0,108430.0,0.08236]
[1761830399581,0.40239,108440.0,108430.0,0.44316]
[1761830400388,0.40939,108440.0,108430.0,0.44416]
[1761830400581,0.34028,108440.0,108430.0,0.44416]
[1761830400782,0.43327,108440.0,108430.0,0.44416]
[1761830401083,0.79683,108440.0,108430.0,0.08336]
[1761830401594,0.43603,108440.0,108430.0,0.08336]
[1761830401796,0.79683,108440.0,108430.0,0.08336]
[1761830402991,0.43603,108440.0,108430.0,0.08336]
[1761830404485,0.43603,108440.0,108430.0,0.44416]
[1761830404685,0.08211,108440.0,108430.0,0.84623626]
[1761830404888,0.81351,108440.0,108430.0,0.001]
[1761830405184,0.07211,108420.0,108410.0,0.43393]
[1761830405384,0.07487,108420.0,108410.0,0.43393]
[1761830405595,0.40451,108420.0,108410.0,0.84523626]